Workbook

Sheet SOURCE
C1: =SUM(C3:$C60) -> 0 | D1: =SUM(D2:D60) -> 0 | F1: =C1-D1 -> 0
A2: Invice date | B2: Type | C2: original amount | D2: open amount | E2: status
D3: =IF(E3="open",SUMIF($C$3:C$59,">0",$C$3:C$59)+SUMIF($C$3:C$59,"<0",$C$3:C$59)-SUM(E3:E59),E3) -> 0
D4: =IF(E4="open",SUMIF($C$3:C$59,">0",$C$3:C$59)+SUMIF($C$3:C$59,"<0",$C$3:C$59)-SUM(E4:E59),E4) -> 0
D5: =IF(E5="open",SUMIF($C$3:C$59,">0",$C$3:C$59)+SUMIF($C$3:C$59,"<0",$C$3:C$59)-SUM(E5:E60),E5) -> 0
D6: =IF(E6="open",SUMIF($C$3:C$59,">0",$C$3:C$59)+SUMIF($C$3:C$59,"<0",$C$3:C$59)-SUM(E6:E61),E6) -> 0
D7: =IF(E7="open",SUMIF($C$3:C$59,">0",$C$3:C$59)+SUMIF($C$3:C$59,"<0",$C$3:C$59)-SUM(E7:E62),E7) -> 0
D8: =IF(E8="open",SUMIF($C$3:C$59,">0",$C$3:C$59)+SUMIF($C$3:C$59,"<0",$C$3:C$59)-SUM(E8:E63),E8) -> 0
D9: =IF(E9="open",SUMIF($C$3:C$59,">0",$C$3:C$59)+SUMIF($C$3:C$59,"<0",$C$3:C$59)-SUM(E9:E64),E9) -> 0
D10: =IF(E10="open",SUMIF($C$3:C$59,">0",$C$3:C$59)+SUMIF($C$3:C$59,"<0",$C$3:C$59)-SUM(E10:E65),E10) -> 0
D11: =IF(E11="open",SUMIF($C$3:C$59,">0",$C$3:C$59)+SUMIF($C$3:C$59,"<0",$C$3:C$59)-SUM(E11:E66),E11) -> 0
D12: =IF(E12="open",SUMIF($C$3:C$59,">0",$C$3:C$59)+SUMIF($C$3:C$59,"<0",$C$3:C$59)-SUM(E12:E67),E12) -> 0
D13: =IF(E13="open",SUMIF($C$3:C$59,">0",$C$3:C$59)+SUMIF($C$3:C$59,"<0",$C$3:C$59)-SUM(E13:E68),E13) -> 0
D14: =IF(E14="open",SUMIF($C$3:C$59,">0",$C$3:C$59)+SUMIF($C$3:C$59,"<0",$C$3:C$59)-SUM(E14:E69),E14) -> 0
D15: =IF(E15="open",SUMIF($C$3:C$59,">0",$C$3:C$59)+SUMIF($C$3:C$59,"<0",$C$3:C$59)-SUM(E15:E70),E15) -> 0
D16: =IF(E16="open",SUMIF($C$3:C$59,">0",$C$3:C$59)+SUMIF($C$3:C$59,"<0",$C$3:C$59)-SUM(E16:E71),E16) -> 0
D17: =IF(E17="open",SUMIF($C$3:C$59,">0",$C$3:C$59)+SUMIF($C$3:C$59,"<0",$C$3:C$59)-SUM(E17:E72),E17) -> 0
D18: =IF(E18="open",SUMIF($C$3:C$59,">0",$C$3:C$59)+SUMIF($C$3:C$59,"<0",$C$3:C$59)-SUM(E18:E73),E18) -> 0
D19: =IF(E19="open",SUMIF($C$3:C$59,">0",$C$3:C$59)+SUMIF($C$3:C$59,"<0",$C$3:C$59)-SUM(E19:E74),E19) -> 0
D20: =IF(E20="open",SUMIF($C$3:C$59,">0",$C$3:C$59)+SUMIF($C$3:C$59,"<0",$C$3:C$59)-SUM(E20:E75),E20) -> 0
D21: =IF(E21="open",SUMIF($C$3:C$59,">0",$C$3:C$59)+SUMIF($C$3:C$59,"<0",$C$3:C$59)-SUM(E21:E76),E21) -> 0
D22: =IF(E22="open",SUMIF($C$3:C$59,">0",$C$3:C$59)+SUMIF($C$3:C$59,"<0",$C$3:C$59)-SUM(E22:E77),E22) -> 0
D23: =IF(E23="open",SUMIF($C$3:C$59,">0",$C$3:C$59)+SUMIF($C$3:C$59,"<0",$C$3:C$59)-SUM(E23:E78),E23) -> 0
D24: =IF(E24="open",SUMIF($C$3:C$59,">0",$C$3:C$59)+SUMIF($C$3:C$59,"<0",$C$3:C$59)-SUM(E24:E79),E24) -> 0
D25: =IF(E25="open",SUMIF($C$3:C$59,">0",$C$3:C$59)+SUMIF($C$3:C$59,"<0",$C$3:C$59)-SUM(E25:E80),E25) -> 0
D26: =IF(E26="open",SUMIF($C$3:C$59,">0",$C$3:C$59)+SUMIF($C$3:C$59,"<0",$C$3:C$59)-SUM(E26:E81),E26) -> 0
D27: =IF(E27="open",SUMIF($C$3:C$59,">0",$C$3:C$59)+SUMIF($C$3:C$59,"<0",$C$3:C$59)-SUM(E27:E82),E27) -> 0
D28: =IF(E28="open",SUMIF($C$3:C$59,">0",$C$3:C$59)+SUMIF($C$3:C$59,"<0",$C$3:C$59)-SUM(E28:E83),E28) -> 0
D29: =IF(E29="open",SUMIF($C$3:C$59,">0",$C$3:C$59)+SUMIF($C$3:C$59,"<0",$C$3:C$59)-SUM(E29:E84),E29) -> 0
D30: =IF(E30="open",SUMIF($C$3:C$59,">0",$C$3:C$59)+SUMIF($C$3:C$59,"<0",$C$3:C$59)-SUM(E30:E85),E30) -> 0
D31: =IF(E31="open",SUMIF($C$3:C$59,">0",$C$3:C$59)+SUMIF($C$3:C$59,"<0",$C$3:C$59)-SUM(E31:E86),E31) -> 0
D32: =IF(E32="open",SUMIF($C$3:C$59,">0",$C$3:C$59)+SUMIF($C$3:C$59,"<0",$C$3:C$59)-SUM(E32:E87),E32) -> 0
D33: =IF(E33="open",SUMIF($C$3:C$59,">0",$C$3:C$59)+SUMIF($C$3:C$59,"<0",$C$3:C$59)-SUM(E33:E88),E33) -> 0
D34: =IF(E34="open",SUMIF($C$3:C$59,">0",$C$3:C$59)+SUMIF($C$3:C$59,"<0",$C$3:C$59)-SUM(E34:E89),E34) -> 0
D35: =IF(E35="open",SUMIF($C$3:C$59,">0",$C$3:C$59)+SUMIF($C$3:C$59,"<0",$C$3:C$59)-SUM(E35:E90),E35) -> 0
D36: =IF(E36="open",SUMIF($C$3:C$59,">0",$C$3:C$59)+SUMIF($C$3:C$59,"<0",$C$3:C$59)-SUM(E36:E91),E36) -> 0
D37: =IF(E37="open",SUMIF($C$3:C$59,">0",$C$3:C$59)+SUMIF($C$3:C$59,"<0",$C$3:C$59)-SUM(E37:E92),E37) -> 0
D38: =IF(E38="open",SUMIF($C$3:C$59,">0",$C$3:C$59)+SUMIF($C$3:C$59,"<0",$C$3:C$59)-SUM(E38:E93),E38) -> 0
D39: =IF(E39="open",SUMIF($C$3:C$59,">0",$C$3:C$59)+SUMIF($C$3:C$59,"<0",$C$3:C$59)-SUM(E39:E94),E39) -> 0
D40: =IF(E40="open",SUMIF($C$3:C$60,">0",$C$3:C$60)+SUMIF($C$3:C$60,"<0",$C$3:C$60)-SUM(E40:E95),E40) -> 0
D41: =IF(E41="open",SUMIF($C$3:C$59,">0",$C$3:C$59)+SUMIF($C$3:C$59,"<0",$C$3:C$59)-SUM(E41:E96),E41) -> 0
D42: =IF(E42="open",SUMIF($C$3:C$59,">0",$C$3:C$59)+SUMIF($C$3:C$59,"<0",$C$3:C$59)-SUM(E42:E97),E42) -> 0
D43: =IF(E43="open",SUMIF($C$3:C$59,">0",$C$3:C$59)+SUMIF($C$3:C$59,"<0",$C$3:C$59)-SUM(E43:E98),E43) -> 0
D44: =IF(E44="open",SUMIF($C$3:C$59,">0",$C$3:C$59)+SUMIF($C$3:C$59,"<0",$C$3:C$59)-SUM(E44:E99),E44) -> 0
D45: =IF(E45="open",SUMIF($C$3:C$59,">0",$C$3:C$59)+SUMIF($C$3:C$59,"<0",$C$3:C$59)-SUM(E45:E100),E45) -> 0
D46: =IF(E46="open",SUMIF($C$3:C$59,">0",$C$3:C$59)+SUMIF($C$3:C$59,"<0",$C$3:C$59)-SUM(E46:E101),E46) -> 0
D47: =IF(E47="open",SUMIF($C$3:C$59,">0",$C$3:C$59)+SUMIF($C$3:C$59,"<0",$C$3:C$59)-SUM(E47:E102),E47) -> 0
D48: =IF(E48="open",SUMIF($C$3:C$59,">0",$C$3:C$59)+SUMIF($C$3:C$59,"<0",$C$3:C$59)-SUM(E48:E103),E48) -> 0
D49: =IF(E49="open",SUMIF($C$3:C$59,">0",$C$3:C$59)+SUMIF($C$3:C$59,"<0",$C$3:C$59)-SUM(E49:E104),E49) -> 0
D50: =IF(E50="open",SUMIF($C$3:C$59,">0",$C$3:C$59)+SUMIF($C$3:C$59,"<0",$C$3:C$59)-SUM(E50:E105),E50) -> 0
D51: =IF(E51="open",SUMIF($C$3:C$59,">0",$C$3:C$59)+SUMIF($C$3:C$59,"<0",$C$3:C$59)-SUM(E51:E106),E51) -> 0
D52: =IF(E52="open",SUMIF($C$3:C$59,">0",$C$3:C$59)+SUMIF($C$3:C$59,"<0",$C$3:C$59)-SUM(E52:E107),E52) -> 0
D53: =IF(E53="open",SUMIF($C$3:C$59,">0",$C$3:C$59)+SUMIF($C$3:C$59,"<0",$C$3:C$59)-SUM(E53:E108),E53) -> 0
D54: =IF(E54="open",SUMIF($C$3:C$59,">0",$C$3:C$59)+SUMIF($C$3:C$59,"<0",$C$3:C$59)-SUM(E54:E109),E54) -> 0
D55: =IF(E55="open",SUMIF($C$3:C$59,">0",$C$3:C$59)+SUMIF($C$3:C$59,"<0",$C$3:C$59)-SUM(E55:E110),E55) -> 0
D56: =IF(E56="open",SUMIF($C$3:C$59,">0",$C$3:C$59)+SUMIF($C$3:C$59,"<0",$C$3:C$59)-SUM(E56:E111),E56) -> 0
D57: =IF(E57="open",SUMIF($C$3:C$59,">0",$C$3:C$59)+SUMIF($C$3:C$59,"<0",$C$3:C$59)-SUM(E57:E112),E57) -> 0
D58: =IF(E58="open",SUMIF($C$3:C$59,">0",$C$3:C$59)+SUMIF($C$3:C$59,"<0",$C$3:C$59)-SUM(E58:E113),E58) -> 0
D59: =IF(E59="open",SUMIF($C$3:C$59,">0",$C$3:C$59)+SUMIF($C$3:C$59,"<0",$C$3:C$59)-SUM(E59:E114),E59) -> 0
D60: =IF(E60="open",SUMIF($C$3:C$59,">0",$C$3:C$59)+SUMIF($C$3:C$59,"<0",$C$3:C$59)-SUM(E60:E115),E60) -> 0
C318: =SUM(C1:C317) -> 0

Sheet المطلوب
D1: =SUM(D2:$D70) -> 8607.777 | E1: =SUM(E2:E69) -> 8607.777 | G1: =D1-E1 -> 0
A2: Invoice date | B2: custemar | C2: Type | D2: original amount | E2: open amount | F2: status
A3: 2018-04-25 | B3: 1 | C3: invoice | D3: 4345.115 | E3: =IF(F3="open",SUMIF($D$3:$D65,">0",$D$3:$D67)+SUMIF($D$3:$D67,"<0",$D$3:$D67)-SUM(F3:F62),F3) -> closed | F3: closed
A4: 2018-05-24 | B4: 1 | C4: advance payment | D4: -116.192 | E4: =IF(F4="open",SUMIF($D$3:$D66,">0",$D$3:$D68)+SUMIF($D$3:$D68,"<0",$D$3:$D68)-SUM(F4:F63),F4) -> 0 | F4: 0
A5: 2018-05-25 | B5: 1 | C5: invoice | D5: 566.006 | E5: =IF(F5="open",SUMIF($D$3:$D67,">0",$D$3:$D69)+SUMIF($D$3:$D69,"<0",$D$3:$D69)-SUM(F5:F64),F5) -> closed | F5: closed
A6: 2018-05-29 | B6: 1 | C6: advance payment | D6: -20 | E6: =IF(F6="open",SUMIF($D$3:$D68,">0",$D$3:$D70)+SUMIF($D$3:$D70,"<0",$D$3:$D70)-SUM(F6:F65),F6) -> 0 | F6: 0
A7: 2018-06-25 | B7: 1 | C7: invoice | D7: 554.027 | E7: =IF(F7="open",SUMIF($D$3:$D69,">0",$D$3:$D71)+SUMIF($D$3:$D71,"<0",$D$3:$D71)-SUM(F7:F66),F7) -> closed | F7: closed
A8: 2018-06-27 | B8: 1 | C8: advance payment | D8: -566.006 | E8: =IF(F8="open",SUMIF($D$3:$D70,">0",$D$3:$D72)+SUMIF($D$3:$D72,"<0",$D$3:$D72)-SUM(F8:F67),F8) -> 0 | F8: 0
A9: 2018-07-24 | B9: 1 | C9: advance payment | D9: -554.027 | E9: =IF(F9="open",SUMIF($D$3:$D71,">0",$D$3:$D73)+SUMIF($D$3:$D73,"<0",$D$3:$D73)-SUM(F9:F68),F9) -> 0 | F9: 0
A10: 2018-07-25 | B10: 2 | C10: invoice | D10: 628.252 | E10: =IF(F10="open",SUMIF($D$3:$D72,">0",$D$3:$D74)+SUMIF($D$3:$D74,"<0",$D$3:$D74)-SUM(F10:F69),F10) -> closed | F10: closed
A11: 2018-08-25 | B11: 2 | C11: invoice | D11: 610.941 | E11: =IF(F11="open",SUMIF($D$3:$D73,">0",$D$3:$D75)+SUMIF($D$3:$D75,"<0",$D$3:$D75)-SUM(F11:F70),F11) -> closed | F11: closed | H11: السلام عليكم لدى كود يعمل على سداد القواتير وارغب ان يعمل الكود على حسب رقم العميل بحيث انة يتم سداد الفاتورة طبقا للمورد
A12: 2018-08-29 | B12: 2 | C12: advance payment | D12: -628.252 | E12: =IF(F12="open",SUMIF($D$3:$D74,">0",$D$3:$D76)+SUMIF($D$3:$D76,"<0",$D$3:$D76)-SUM(F12:F71),F12) -> 0 | F12: 0
A13: 2018-09-25 | B13: 2 | C13: advance payment | D13: -610.941 | E13: =IF(F13="open",SUMIF($D$3:$D75,">0",$D$3:$D77)+SUMIF($D$3:$D77,"<0",$D$3:$D77)-SUM(F13:F72),F13) -> 0 | F13: 0
A14: 2018-09-25 | B14: 1 | C14: invoice | D14: 606.027 | E14: =IF(F14="open",SUMIF($D$3:$D76,">0",$D$3:$D78)+SUMIF($D$3:$D78,"<0",$D$3:$D78)-SUM(F14:F73),F14) -> closed | F14: closed
A15: 2018-10-25 | B15: 1 | C15: invoice | D15: 644.008 | E15: =IF(F15="open",SUMIF($D$3:$D77,">0",$D$3:$D79)+SUMIF($D$3:$D79,"<0",$D$3:$D79)-SUM(F15:F74),F15) -> closed | F15: closed
A16: 2018-10-29 | B16: 1 | C16: advance payment | D16: -606.027 | E16: =IF(F16="open",SUMIF($D$3:$D78,">0",$D$3:$D80)+SUMIF($D$3:$D80,"<0",$D$3:$D80)-SUM(F16:F75),F16) -> 0 | F16: 0
A17: 2018-11-25 | B17: 2 | C17: invoice | D17: 619.586 | E17: =IF(F17="open",SUMIF($D$3:$D79,">0",$D$3:$D81)+SUMIF($D$3:$D81,"<0",$D$3:$D81)-SUM(F17:F76),F17) -> closed | F17: closed
A18: 2018-11-29 | B18: 2 | C18: advance payment | D18: -644.008 | E18: =IF(F18="open",SUMIF($D$3:$D80,">0",$D$3:$D82)+SUMIF($D$3:$D82,"<0",$D$3:$D82)-SUM(F18:F77),F18) -> 0 | F18: 0
A19: 2018-12-25 | B19: 2 | C19: invoice | D19: 625.86 | E19: =IF(F19="open",SUMIF($D$3:$D81,">0",$D$3:$D83)+SUMIF($D$3:$D83,"<0",$D$3:$D83)-SUM(F19:F78),F19) -> closed | F19: closed
A20: 2018-12-30 | B20: 2 | C20: advance payment | D20: -619.586 | E20: =IF(F20="open",SUMIF($D$3:$D82,">0",$D$3:$D84)+SUMIF($D$3:$D84,"<0",$D$3:$D84)-SUM(F20:F79),F20) -> 0 | F20: 0
A21: 2019-01-25 | B21: 3 | C21: invoice | D21: 652.608 | E21: =IF(F21="open",SUMIF($D$3:$D83,">0",$D$3:$D85)+SUMIF($D$3:$D85,"<0",$D$3:$D85)-SUM(F21:F80),F21) -> closed | F21: closed
A22: 2019-01-27 | B22: 3 | C22: advance payment | D22: -97.179 | E22: =IF(F22="open",SUMIF($D$3:$D84,">0",$D$3:$D86)+SUMIF($D$3:$D86,"<0",$D$3:$D86)-SUM(F22:F81),F22) -> 0 | F22: 0
A23: 2019-01-30 | B23: 3 | C23: advance payment | D23: -625.86 | E23: =IF(F23="open",SUMIF($D$3:$D85,">0",$D$3:$D87)+SUMIF($D$3:$D87,"<0",$D$3:$D87)-SUM(F23:F82),F23) -> 0 | F23: 0
A24: 2019-02-25 | C24: invoice | D24: 694.518 | E24: =IF(F24="open",SUMIF($D$3:$D86,">0",$D$3:$D88)+SUMIF($D$3:$D88,"<0",$D$3:$D88)-SUM(F24:F83),F24) -> closed | F24: closed
A25: 2019-03-25 | C25: invoice | D25: 1745.151 | E25: =IF(F25="open",SUMIF($D$3:$D87,">0",$D$3:$D89)+SUMIF($D$3:$D89,"<0",$D$3:$D89)-SUM(F25:F84),F25) -> closed | F25: closed
A26: 2019-04-02 | C26: advance payment | D26: -652.608 | E26: =IF(F26="open",SUMIF($D$3:$D88,">0",$D$3:$D90)+SUMIF($D$3:$D90,"<0",$D$3:$D90)-SUM(F26:F85),F26) -> 0 | F26: 0
A27: 2019-04-23 | C27: advance payment | D27: -538.89 | E27: =IF(F27="open",SUMIF($D$3:$D89,">0",$D$3:$D91)+SUMIF($D$3:$D91,"<0",$D$3:$D91)-SUM(F27:F86),F27) -> 0 | F27: 0
A28: 2019-04-25 | C28: invoice | D28: 787.833 | E28: =IF(F28="open",SUMIF($D$3:$D90,">0",$D$3:$D92)+SUMIF($D$3:$D92,"<0",$D$3:$D92)-SUM(F28:F87),F28) -> closed | F28: closed
A29: 2019-05-19 | C29: advance payment | D29: -694.518 | E29: =IF(F29="open",SUMIF($D$3:$D91,">0",$D$3:$D93)+SUMIF($D$3:$D93,"<0",$D$3:$D93)-SUM(F29:F88),F29) -> 0 | F29: 0
A30: 2019-05-25 | C30: invoice | D30: 876.568 | E30: =IF(F30="open",SUMIF($D$3:$D92,">0",$D$3:$D94)+SUMIF($D$3:$D94,"<0",$D$3:$D94)-SUM(F30:F89),F30) -> closed | F30: closed
A31: 2019-06-25 | C31: advance payment | D31: -3465.794 | E31: =IF(F31="open",SUMIF($D$3:$D93,">0",$D$3:$D95)+SUMIF($D$3:$D95,"<0",$D$3:$D95)-SUM(F31:F90),F31) -> 0 | F31: 0
A32: 2019-07-23 | C32: advance payment | D32: -52 | E32: =IF(F32="open",SUMIF($D$3:$D94,">0",$D$3:$D96)+SUMIF($D$3:$D96,"<0",$D$3:$D96)-SUM(F32:F91),F32) -> 0 | F32: 0
A33: 2019-07-25 | C33: invoice | D33: 797.608 | E33: =IF(F33="open",SUMIF($D$3:$D95,">0",$D$3:$D97)+SUMIF($D$3:$D97,"<0",$D$3:$D97)-SUM(F33:F92),F33) -> closed | F33: closed
A34: 2019-08-25 | C34: invoice | D34: 725.234 | E34: =IF(F34="open",SUMIF($D$3:$D96,">0",$D$3:$D98)+SUMIF($D$3:$D98,"<0",$D$3:$D98)-SUM(F34:F93),F34) -> closed | F34: closed
A35: 2019-09-25 | C35: invoice | D35: 868.544 | E35: =IF(F35="open",SUMIF($D$3:$D97,">0",$D$3:$D99)+SUMIF($D$3:$D99,"<0",$D$3:$D99)-SUM(F35:F94),F35) -> closed | F35: closed
A36: 2019-10-27 | C36: invoice | D36: 835.687 | E36: =IF(F36="open",SUMIF($D$3:$D98,">0",$D$3:$D100)+SUMIF($D$3:$D100,"<0",$D$3:$D100)-SUM(F36:F95),F36) -> closed | F36: closed
A37: 2019-10-29 | C37: advance payment | D37: -850 | E37: =IF(F37="open",SUMIF($D$3:$D99,">0",$D$3:$D101)+SUMIF($D$3:$D101,"<0",$D$3:$D101)-SUM(F37:F96),F37) -> 0 | F37: 0
A38: 2019-11-25 | C38: invoice | D38: 758.948 | E38: =IF(F38="open",SUMIF($D$3:$D100,">0",$D$3:$D102)+SUMIF($D$3:$D102,"<0",$D$3:$D102)-SUM(F38:F97),F38) -> closed | F38: closed
A39: 2019-12-25 | C39: invoice | D39: 762.395 | E39: =IF(F39="open",SUMIF($D$3:$D101,">0",$D$3:$D103)+SUMIF($D$3:$D103,"<0",$D$3:$D103)-SUM(F39:F98),F39) -> closed | F39: closed
A40: 2020-01-25 | C40: invoice | D40: 677.385 | E40: =IF(F40="open",SUMIF($D$3:$D102,">0",$D$3:$D104)+SUMIF($D$3:$D104,"<0",$D$3:$D104)-SUM(F40:F99),F40) -> closed | F40: closed
A41: 2020-02-05 | C41: advance payment | D41: -146.4 | E41: =IF(F41="open",SUMIF($D$3:$D103,">0",$D$3:$D105)+SUMIF($D$3:$D105,"<0",$D$3:$D105)-SUM(F41:F100),F41) -> 0 | F41: 0
A42: 2020-02-24 | C42: advance payment | D42: -1500 | E42: =IF(F42="open",SUMIF($D$3:$D104,">0",$D$3:$D106)+SUMIF($D$3:$D106,"<0",$D$3:$D106)-SUM(F42:F101),F42) -> 0 | F42: 0
A43: 2020-02-25 | C43: invoice | D43: 762.63 | E43: =IF(F43="open",SUMIF($D$3:$D105,">0",$D$3:$D107)+SUMIF($D$3:$D107,"<0",$D$3:$D107)-SUM(F43:F102),F43) -> closed | F43: closed
A44: 2020-03-25 | C44: invoice | D44: 724.062 | E44: =IF(F44="open",SUMIF($D$3:$D106,">0",$D$3:$D108)+SUMIF($D$3:$D108,"<0",$D$3:$D108)-SUM(F44:F103),F44) -> closed | F44: closed
A45: 2020-04-25 | C45: invoice | D45: 709.875 | E45: =IF(F45="open",SUMIF($D$3:$D107,">0",$D$3:$D109)+SUMIF($D$3:$D109,"<0",$D$3:$D109)-SUM(F45:F104),F45) -> closed | F45: closed
A46: 2020-05-25 | C46: invoice | D46: 838.542 | E46: =IF(F46="open",SUMIF($D$3:$D108,">0",$D$3:$D110)+SUMIF($D$3:$D110,"<0",$D$3:$D110)-SUM(F46:F105),F46) -> closed | F46: closed
A47: 2020-06-25 | C47: invoice | D47: 732.29 | E47: =IF(F47="open",SUMIF($D$3:$D109,">0",$D$3:$D111)+SUMIF($D$3:$D111,"<0",$D$3:$D111)-SUM(F47:F106),F47) -> closed | F47: closed
A48: 2020-07-25 | C48: invoice | D48: 670.737 | E48: =IF(F48="open",SUMIF($D$3:$D110,">0",$D$3:$D112)+SUMIF($D$3:$D112,"<0",$D$3:$D112)-SUM(F48:F107),F48) -> closed | F48: closed
A49: 2020-07-29 | C49: advance payment | D49: -1500 | E49: =IF(F49="open",SUMIF($D$3:$D111,">0",$D$3:$D113)+SUMIF($D$3:$D113,"<0",$D$3:$D113)-SUM(F49:F108),F49) -> 0 | F49: 0
A50: 2020-08-25 | C50: invoice | D50: 638.35 | E50: =IF(F50="open",SUMIF($D$3:$D112,">0",$D$3:$D114)+SUMIF($D$3:$D114,"<0",$D$3:$D114)-SUM(F50:F109),F50) -> 70.499 | F50: open
A51: 2020-09-25 | C51: invoice | D51: 647.897 | E51: =IF(F51="open",SUMIF($D$3:$D113,">0",$D$3:$D115)+SUMIF($D$3:$D115,"<0",$D$3:$D115)-SUM(F51:F110),F51) -> 647.897 | F51: 647.897
A52: 2020-10-25 | C52: invoice | D52: 656.247 | E52: =IF(F52="open",SUMIF($D$3:$D114,">0",$D$3:$D116)+SUMIF($D$3:$D116,"<0",$D$3:$D116)-SUM(F52:F111),F52) -> 656.247 | F52: 656.247
A53: 2020-11-25 | C53: invoice | D53: 669.553 | E53: =IF(F53="open",SUMIF($D$3:$D115,">0",$D$3:$D117)+SUMIF($D$3:$D117,"<0",$D$3:$D117)-SUM(F53:F112),F53) -> 669.553 | F53: 669.553
A54: 2020-12-13 | C54: advance payment | D54: -3000 | E54: =IF(F54="open",SUMIF($D$3:$D116,">0",$D$3:$D118)+SUMIF($D$3:$D118,"<0",$D$3:$D118)-SUM(F54:F113),F54) -> 0 | F54: 0
A55: 2020-12-25 | C55: invoice | D55: 623.672 | E55: =IF(F55="open",SUMIF($D$3:$D117,">0",$D$3:$D119)+SUMIF($D$3:$D119,"<0",$D$3:$D119)-SUM(F55:F114),F55) -> 623.672 | F55: 623.672
A56: 2021-01-25 | C56: invoice | D56: 602.215 | E56: =IF(F56="open",SUMIF($D$3:$D118,">0",$D$3:$D120)+SUMIF($D$3:$D120,"<0",$D$3:$D120)-SUM(F56:F115),F56) -> 602.215 | F56: 602.215
A57: 2021-02-02 | C57: advance payment | D57: -1500 | E57: =IF(F57="open",SUMIF($D$3:$D119,">0",$D$3:$D121)+SUMIF($D$3:$D121,"<0",$D$3:$D121)-SUM(F57:F116),F57) -> 0 | F57: 0
A58: 2021-02-25 | C58: invoice | D58: 638.758 | E58: =IF(F58="open",SUMIF($D$3:$D120,">0",$D$3:$D122)+SUMIF($D$3:$D122,"<0",$D$3:$D122)-SUM(F58:F117),F58) -> 638.758 | F58: 638.758
A59: 2021-03-25 | C59: invoice | D59: 609.756 | E59: =IF(F59="open",SUMIF($D$3:$D121,">0",$D$3:$D123)+SUMIF($D$3:$D123,"<0",$D$3:$D123)-SUM(F59:F118),F59) -> 609.756 | F59: 609.756
A60: 2021-04-25 | C60: invoice | D60: 602.013 | E60: =IF(F60="open",SUMIF($D$3:$D122,">0",$D$3:$D124)+SUMIF($D$3:$D124,"<0",$D$3:$D124)-SUM(F60:F119),F60) -> 602.013 | F60: 602.013
A61: 2021-05-25 | C61: invoice | D61: 573.371 | E61: =IF(F61="open",SUMIF($D$3:$D123,">0",$D$3:$D125)+SUMIF($D$3:$D125,"<0",$D$3:$D125)-SUM(F61:F120),F61) -> 573.371 | F61: 573.371
A62: 2021-05-30 | C62: advance payment | D62: -1000 | E62: =IF(F62="open",SUMIF($D$3:$D124,">0",$D$3:$D126)+SUMIF($D$3:$D126,"<0",$D$3:$D126)-SUM(F62:F121),F62) -> 0 | F62: 0
A63: 2021-06-25 | C63: invoice | D63: 580.818 | E63: =IF(F63="open",SUMIF($D$3:$D125,">0",$D$3:$D127)+SUMIF($D$3:$D127,"<0",$D$3:$D127)-SUM(F63:F122),F63) -> 580.818 | F63: 580.818
A64: 2021-07-26 | C64: advance payment | D64: -1200 | E64: =IF(F64="open",SUMIF($D$3:$D126,">0",$D$3:$D128)+SUMIF($D$3:$D128,"<0",$D$3:$D128)-SUM(F64:F123),F64) -> 0 | F64: 0
A65: 2021-07-25 | C65: invoice | D65: 550.235 | E65: =IF(F65="open",SUMIF($D$3:$D127,">0",$D$3:$D129)+SUMIF($D$3:$D129,"<0",$D$3:$D129)-SUM(F65:F124),F65) -> 550.235 | F65: 550.235
A66: 2021-08-25 | C66: invoice 485837082021 | D66: 586.699 | E66: =IF(F66="open",SUMIF($D$3:$D128,">0",$D$3:$D130)+SUMIF($D$3:$D130,"<0",$D$3:$D130)-SUM(F66:F125),F66) -> 586.699 | F66: 586.699
A67: 2021-09-07 | C67: advance payment 5584 | D67: -1200 | E67: =IF(F67="open",SUMIF($D$3:$D129,">0",$D$3:$D131)+SUMIF($D$3:$D131,"<0",$D$3:$D131)-SUM(F67:F126),F67) -> 0 | F67: 0
A68: 2021-09-25 | C68: invoice 487958092021 | D68: 610.394 | E68: =IF(F68="open",SUMIF($D$3:$D130,">0",$D$3:$D132)+SUMIF($D$3:$D132,"<0",$D$3:$D132)-SUM(F68:F127),F68) -> 610.394 | F68: 610.394
A69: 2021-10-25 | C69: invoice | D69: 585.65 | E69: =IF(F69="open",SUMIF($D$3:$D131,">0",$D$3:$D133)+SUMIF($D$3:$D133,"<0",$D$3:$D133)-SUM(F69:F128),F69) -> 585.65 | F69: 585.65
A70: 2021-11-25 | C70: advance payment 5584 | D70: -2000 | E70: =IF(F70="open",SUMIF($D$3:$D132,">0",$D$3:$D134)+SUMIF($D$3:$D134,"<0",$D$3:$D134)-SUM(F70:F129),F70) -> 0 | F70: 0
A71: 2021-11-25 | C71: invoice | D71: 578.61 | E71: =IF(F71="open",SUMIF($D$3:$D133,">0",$D$3:$D135)+SUMIF($D$3:$D135,"<0",$D$3:$D135)-SUM(F71:F130),F71) -> 578.61 | F71: 578.61
A72: 2021-12-25 | C72: invoice | D72: 580.935 | E72: =IF(F72="open",SUMIF($D$3:$D134,">0",$D$3:$D136)+SUMIF($D$3:$D136,"<0",$D$3:$D136)-SUM(F72:F131),F72) -> 580.935 | F72: 580.935
D319: =SUM(D1:D318) -> 18375.099
